[Event "16th Deltalift Open 2019"]
[Site "Halmstad"]
[Date "2019.06.01"]
[Round "8.5"]
[White "Jepson, Christian"]
[Black "Carlsson, Ludvig"]
[Result "1-0"]
[ECO "D18"]
[WhiteElo "2395"]
[BlackElo "2208"]
[Annotator "ChessBase"]
[PlyCount "97"]
[EventDate "2019.05.30"]
[EventType "swiss"]
[EventCountry "SWE"]
[SourceTitle "playchess.com"]
[Source "ChessBase"]
[SourceQuality "1"]
[TimeControl "40/5400+30:1800+30"]

1. d4 {[%emt 0:00:34]} d5 {[%emt 0:00:26]} 2. c4 {[%emt 0:00:17]} c6 {[%emt 0:00:08]} 3. Nf3 {[%emt 0:00:05]} Nf6 {[%emt 0:00:08]} 4. Nc3 {[%emt 0:00:05]} dxc4 {[%emt 0:00:09]} 5. a4 {[%emt 0:00:20]} Bf5 {[%emt 0:00:10]} 6. e3 {[%emt 0:00:09]} e6 {[%emt 0:00:43]} 7. Bxc4 {[%emt 0:00:08]} Nbd7 {[%emt 0:00:10]} 8. Qe2 {[%emt 0:02:03]} Bb4 {[%emt 0:00:57]} 9. O-O {[%emt 0:00:18]} Bg6 {[%emt 0:00:10]} 10. e4 {[%emt 0:00:18]} O-O {[%emt 0:01:14]} 11. Bd3 {[%emt 0:00:56]} Bh5 {[%emt 0:01:05]} 12. e5 {[%emt 0:01:05]} Nd5 {[%emt 0:00:08]} 13. Nxd5 {[%emt 0:00:06]} cxd5 {[%emt 0:00:07]} 14. Qe3 {[%emt 0:00:06]} Bg6 {[%emt 0:04:32]} 15. Ng5 {[%emt 0:04:02]} Re8 {[%emt 0:07:23]} 16. f4 {[%emt 0:07:22]} Rc8 {[%emt 0:07:53]} 17. Kh1 {[%emt 0:02:35]} Bxd3 {[%emt 0:17:18]} 18. Qxd3 {[%emt 0:03:11]} Nf8 {[%emt 0:00:10]} 19. Be3 {[%emt 0:07:14]} f6 {[%emt 0:04:39]} 20. Nf3 {[%emt 0:01:12]} f5 {[%emt 0:01:07]} 21. Rg1 {[%emt 0:04:25]} Qb6 {[%emt 0:04:04]} 22. g4 {[%emt 0:05:10]} fxg4 {[%emt 0:02:38]} 23. Rxg4 {[%emt 0:00:26]} Qa6 {[%emt 0:00:10]} 24. Qb5 {[%emt 0:11:26]} Qxb5 {[%emt 0:06:02]} 25. axb5 {[%emt 0:00:50]} Ra8 {[%emt 0:00:26]} 26. Rag1 {[%emt 0:07:27]} g6 {[%emt 0:05:59]} 27. h4 {[%emt 0:02:43]} Be7 {[%emt 0:00:51]} 28. h5 {[%emt 0:23:00]} a6 {[%emt 0:01:17]} 29. bxa6 {[%emt 0:00:43]} Rxa6 {[%emt 0:00:32]} 30. R4g2 {[%emt 0:10:18]} Rc8 {[%emt 0:03:27]} 31. Bf2 {[%emt 0:02:53]} Rc2 {[%emt 0:08:41]} 32. Bh4 {[%emt 0:00:57]} Rxg2 {[%emt 0:00:10]} 33. Rxg2 {[%emt 0:00:22]} Bxh4 {[%emt 0:00:42]} 34. Nxh4 {[%emt 0:00:04]} Kf7 {[%emt 0:00:07]} 35. h6 {[%emt 0:03:29]} Ra4 {[%emt 0:03:21]} 36. Nf3 {[%emt 0:00:35]} Ke7 {[%emt 0:00:08]} 37. Rc2 {[%emt 0:00:39]} Kd7 {[%emt 0:00:19]} 38. Kg2 {[%emt 0:00:37]} Rb4 {[%emt 0:00:15]} 39. Kg3 {[%emt 0:00:27]} Rc4 {[%emt 0:06:54]} 40. Rd2 {[%emt 0:00:48]} Rc1 {[%emt 0:01:03]} 41. Rd3 {[%emt 0:07:39]} Rc6 {[%emt 0:02:42]} 42. Rb3 {[%emt 0:01:05]} Kc7 {[%emt 0:00:41]} 43. Kg4 {[%emt 0:00:41]} Rb6 {[%emt 0:01:23]} 44. Rxb6 {[%emt 0:04:05]} Kxb6 {[%emt 0:00:07]} 45. Kg5 {[%emt 0:00:04]} Nd7 {[%emt 0:00:28]} 46. Nh4 {[%emt 0:00:09]} Kb5 {[%emt 0:01:43]} 47. Nxg6 {[%emt 0:00:42]} hxg6 {[%emt 0:00:06]} 48. h7 {[%emt 0:00:17]} Nxe5 {[%emt 0:00:08]} 49. fxe5 {[%emt 0:00:10]} 1-0

[Event "16th Deltalift Open 2019"]
[Site "Halmstad"]
[Date "2019.06.01"]
[Round "8.6"]
[White "Pantzar, Milton"]
[Black "Hansen, Lars"]
[Result "1/2-1/2"]
[ECO "A07"]
[WhiteElo "2390"]
[BlackElo "2196"]
[Annotator "ChessBase"]
[PlyCount "38"]
[EventDate "2019.05.30"]
[EventType "swiss"]
[EventCountry "SWE"]
[SourceTitle "playchess.com"]
[Source "ChessBase"]
[SourceQuality "1"]
[TimeControl "40/5400+30:1800+30"]

1. Nf3 {[%emt 0:00:00]} Nf6 {[%emt 0:01:47]} 2. g3 {[%emt 0:00:12]} d5 {[%emt 0:00:35]} 3. Bg2 {[%emt 0:00:39]} c6 {[%emt 0:00:09]} 4. O-O {[%emt 0:04:28]} Bg4 {[%emt 0:00:08]} 5. h3 {[%emt 0:02:27]} Bh5 {[%emt 0:00:11]} 6. c4 {[%emt 0:01:00]} e6 {[%emt 0:00:17]} 7. d4 {[%emt 0:01:07]} Be7 {[%emt 0:00:54]} 8. Nc3 {[%emt 0:00:36]} Nbd7 {[%emt 0:00:45]} 9. Qb3 {[%emt 0:01:49]} Qb6 {[%emt 0:02:02]} 10. c5 {[%emt 0:00:53]} Qxb3 {[%emt 0:09:55]} 11. axb3 {[%emt 0:00:11]} O-O {[%emt 0:00:09]} 12. b4 {[%emt 0:01:27]} Ne4 {[%emt 0:12:56]} 13. g4 {[%emt 0:22:35]} Bg6 {[%emt 0:00:07]} 14. Bf4 {[%emt 0:00:19]} f5 {[%emt 0:06:28]} 15. gxf5 {[%emt 0:07:02]} Bxf5 {[%emt 0:03:08]} 16. Ne5 {[%emt 0:01:09]} Nxe5 {[%emt 0:05:40]} 17. Bxe5 {[%emt 0:04:52]} Nd2 {[%emt 0:15:06]} 18. Rfe1 {[%emt 0:08:48]} Bh4 {[%emt 0:00:54]} 19. Bg3 {[%emt 0:12:05]} Bxg3 {[%emt 0:01:29]} 1/2-1/2

[Event "16th Deltalift Open 2019"]
[Site "Halmstad"]
[Date "2019.06.01"]
[Round "8.7"]
[White "Rydstrom, Tom"]
[Black "Brzezinski, Adam"]
[Result "1-0"]
[ECO "C18"]
[WhiteElo "2365"]
[BlackElo "2193"]
[Annotator "ChessBase"]
[PlyCount "139"]
[EventDate "2019.05.30"]
[EventType "swiss"]
[EventCountry "SWE"]
[SourceTitle "playchess.com"]
[Source "ChessBase"]
[SourceQuality "1"]
[TimeControl "40/5400+30:1800+30"]

1. e4 {[%emt 0:00:00]} e6 {[%emt 0:00:00]} 2. d4 {[%emt 0:00:19]} d5 {[%emt 0:00:00]} 3. Nc3 {[%emt 0:01:03]} Bb4 {[%emt 0:00:00]} 4. e5 {[%emt 0:01:56]} c5 {[%emt 0:00:00]} 5. a3 {[%emt 0:02:08]} Bxc3+ {[%emt 0:01:52]} 6. bxc3 {[%emt 0:00:02]} Qa5 {[%emt 0:00:10]} 7. Bd2 {[%emt 0:00:04]} Qa4 {[%emt 0:00:06]} 8. Qg4 {[%emt 0:00:28]} Kf8 {[%emt 0:00:08]} 9. Qf4 {[%emt 0:01:40]} Ne7 {[%emt 0:02:20]} 10. dxc5 {[%emt 0:00:19]} Qxf4 {[%emt 0:00:27]} 11. Bxf4 {[%emt 0:00:03]} Nd7 {[%emt 0:00:09]} 12. Nf3 {[%emt 0:00:25]} Ng6 {[%emt 0:02:37]} 13. Bg3 {[%emt 0:00:26]} Nxc5 {[%emt 0:02:13]} 14. c4 {[%emt 0:00:35]} dxc4 {[%emt 0:05:55]} 15. Bxc4 {[%emt 0:01:19]} Bd7 {[%emt 0:00:16]} 16. O-O {[%emt 0:00:29]} h5 {[%emt 0:02:27]} 17. h4 {[%emt 0:04:58]} Ba4 {[%emt 0:01:09]} 18. Ng5 {[%emt 0:11:12]} Bxc2 {[%emt 0:08:36]} 19. Rac1 {[%emt 0:00:27]} Bf5 {[%emt 0:07:26]} 20. Bd5 {[%emt 0:01:28]} Rc8 {[%emt 0:00:07]} 21. Bxb7 {[%emt 0:00:33]} Rc7 {[%emt 0:00:07]} 22. Bf3 {[%emt 0:04:06]} Ke7 {[%emt 0:05:20]} 23. Rc3 {[%emt 0:01:47]} Rhc8 {[%emt 0:01:44]} 24. Bxh5 {[%emt 0:01:30]} Nd3 {[%emt 0:04:17]} 25. Rb3 {[%emt 0:07:26]} Ngxe5 {[%emt 0:08:56]} 26. Nf3 {[%emt 0:05:35]} Nxf3+ {[%emt 0:07:03]} 27. Bxf3 {[%emt 0:00:04]} Rd7 {[%emt 0:00:09]} 28. Rd1 {[%emt 0:02:00]} Nc5 {[%emt 0:03:46]} 29. Rxd7+ {[%emt 0:00:05]} Kxd7 {[%emt 0:00:11]} 30. Rb4 {[%emt 0:00:04]} Ke7 {[%emt 0:07:02]} 31. h5 {[%emt 0:00:19]} f6 {[%emt 0:01:02]} 32. Bf4 {[%emt 0:01:18]} e5 {[%emt 0:01:30]} 33. Be3 {[%emt 0:00:17]} Kd6 {[%emt 0:01:12]} 34. g4 {[%emt 0:04:49]} Bd7 {[%emt 0:01:00]} 35. Rb1 {[%emt 0:00:24]} a5 {[%emt 0:03:17]} 36. g5 {[%emt 0:01:26]} fxg5 {[%emt 0:03:05]} 37. Rd1+ {[%emt 0:01:54]} Ke7 {[%emt 0:00:11]} 38. Rd5 {[%emt 0:03:28]} Ne6 {[%emt 0:01:54]} 39. Rxe5 {[%emt 0:01:18]} a4 {[%emt 0:01:21]} 40. Bxg5+ {[%emt 0:00:25]} Kf7 {[%emt 0:00:26]} 41. Bd5 {[%emt 0:36:45]} Re8 {[%emt 0:32:52]} 42. Bd2 {[%emt 0:05:56]} Kg8 {[%emt 0:00:36]} 43. Bc3 {[%emt 0:00:33]} Kh7 {[%emt 0:00:11]} 44. Be4+ {[%emt 0:14:05]} Kg8 {[%emt 0:00:09]} 45. Kh2 {[%emt 0:00:00]} Nf4 {[%emt 0:00:00]} 46. Rg5 {[%emt 0:00:00]} Rxe4 {[%emt 0:00:00]} 47. Rxg7+ {[%emt 0:00:00]} Kf8 {[%emt 0:00:00]} 48. Rxd7 {[%emt 0:00:00]} Nxh5 {[%emt 0:00:00]} 49. Ra7 {[%emt 0:00:00]} Nf4 {[%emt 0:00:00]} 50. Bb4+ {[%emt 0:00:00]} Ke8 {[%emt 0:00:00]} 51. Rxa4 {[%emt 0:00:00]} Nd3 {[%emt 0:00:00]} 52. Kg3 {[%emt 0:00:00]} Kd7 {[%emt 0:09:01]} 53. Kf3 {[%emt 0:00:00]} Re6 {[%emt 0:00:30]} 54. Bc3 {[%emt 0:00:00]} Kc6 55. Ra8 Kb5 56. Rf8 {[%emt 0:08:40]} Ka4 {[%emt 0:01:30]} 57. Bb4 {[%emt 0:00:48]} Nxf2 {[%emt 0:00:37]} 58. Kxf2 {[%emt 0:00:03]} Kb5 {[%emt 0:00:20]} 59. Rf5+ {[%emt 0:01:34]} Ka4 {[%emt 0:00:36]} 60. Kf3 {[%emt 0:01:31]} Kb3 {[%emt 0:00:51]} 61. Ra5 {[%emt 0:00:40]} Kc4 {[%emt 0:00:18]} 62. Bd2 {[%emt 0:02:10]} Kb3 {[%emt 0:00:33]} 63. Ra8 {[%emt 0:00:31]} Kc4 {[%emt 0:01:35]} 64. a4 {[%emt 0:01:28]} Kc5 {[%emt 0:00:11]} 65. Rb8 {[%emt 0:00:13]} Kc6 {[%emt 0:01:01]} 66. a5 {[%emt 0:02:30]} Kc7 {[%emt 0:07:26]} 67. Bf4+ {[%emt 0:00:32]} Kd7 {[%emt 0:00:05]} 68. Rb7+ {[%emt 0:04:43]} Kc8 {[%emt 0:00:20]} 69. Rb6 {[%emt 0:02:07]} Re1 {[%emt 0:00:27]} 70. a6 {[%emt 0:00:03]} 1-0

[Event "16th Deltalift Open 2019"]
[Site "Halmstad"]
[Date "2019.06.01"]
[Round "8.8"]
[White "Ivarsson, Sebastian"]
[Black "Malmstig, Erik"]
[Result "0-1"]
[ECO "A41"]
[WhiteElo "2013"]
[BlackElo "2352"]
[Annotator "ChessBase"]
[PlyCount "50"]
[EventDate "2019.05.30"]
[EventType "swiss"]
[EventCountry "SWE"]
[SourceTitle "playchess.com"]
[Source "ChessBase"]
[SourceQuality "1"]
[TimeControl "40/5400+30:1800+30"]

1. d4 {[%emt 0:00:00]} d6 {[%emt 0:00:10]} 2. c4 {[%emt 0:00:23]} Nd7 {[%emt 0:00:08]} 3. Nc3 {[%emt 0:01:55]} e5 {[%emt 0:00:09]} 4. Nf3 {[%emt 0:03:28]} c6 {[%emt 0:01:48]} 5. e3 {[%emt 0:03:06]} f5 {[%emt 0:01:16]} 6. dxe5 {[%emt 0:01:16]} dxe5 {[%emt 0:00:57]} 7. Be2 {[%emt 0:00:20]} Nh6 {[%emt 0:03:52]} 8. O-O {[%emt 0:02:25]} Qf6 {[%emt 0:01:20]} 9. b3 {[%emt 0:06:03]} Bd6 {[%emt 0:11:04]} 10. Bb2 {[%emt 0:02:29]} O-O {[%emt 0:01:30]} 11. Qd2 {[%emt 0:05:55]} Nf7 {[%emt 0:09:57]} 12. Rfd1 {[%emt 0:03:27]} Nc5 {[%emt 0:11:17]} 13. Qc2 {[%emt 0:04:03]} a5 {[%emt 0:03:43]} 14. a3 {[%emt 0:04:13]} Ne6 {[%emt 0:08:41]} 15. Na4 {[%emt 0:04:54]} Bc7 {[%emt 0:00:24]} 16. b4 {[%emt 0:02:13]} Qh6 {[%emt 0:00:48]} 17. h3 {[%emt 0:07:13]} e4 {[%emt 0:01:15]} 18. Nd4 {[%emt 0:01:03]} Neg5 {[%emt 0:01:14]} 19. Bf1 {[%emt 0:01:39]} f4 {[%emt 0:03:42]} 20. exf4 {[%emt 0:09:44]} Nxh3+ {[%emt 0:04:36]} 21. gxh3 {[%emt 0:01:02]} Qxf4 {[%emt 0:00:16]} 22. Bg2 {[%emt 0:04:14]} Ng5 {[%emt 0:02:04]} 23. Rd2 {[%emt 0:17:50]} e3 {[%emt 0:11:44]} 24. Re2 {[%emt 0:01:00]} Qh2+ {[%emt 0:00:47]} 25. Kf1 {[%emt 0:00:18]} Bxh3 {[%emt 0:00:39]} 0-1

[Event "16th Deltalift Open 2019"]
[Site "Halmstad"]
[Date "2019.06.01"]
[Round "8.9"]
[White "Bellon Lopez, Juan Manuel"]
[Black "Holm, Ragnar"]
[Result "1-0"]
[ECO "C15"]
[WhiteElo "2345"]
[BlackElo "2124"]
[Annotator "ChessBase"]
[PlyCount "41"]
[EventDate "2019.05.30"]
[EventType "swiss"]
[EventCountry "SWE"]
[SourceTitle "playchess.com"]
[Source "ChessBase"]
[SourceQuality "1"]
[TimeControl "40/5400+30:1800+30"]

1. d4 {[%emt 0:01:56]} e6 {[%emt 0:00:01]} 2. Nc3 {[%emt 0:01:26]} d5 {[%emt 0:00:59]} 3. e4 {[%emt 0:01:16]} Bb4 {[%emt 0:01:15]} 4. Qd3 {[%emt 0:00:06]} dxe4 {[%emt 0:04:56]} 5. Qxe4 {[%emt 0:00:07]} Nf6 {[%emt 0:00:17]} 6. Qh4 {[%emt 0:00:06]} c5 {[%emt 0:01:54]} 7. dxc5 {[%emt 0:01:41]} Qa5 {[%emt 0:04:22]} 8. Bd2 {[%emt 0:00:27]} Qxc5 {[%emt 0:02:23]} 9. a3 {[%emt 0:00:23]} Bxc3 {[%emt 0:02:27]} 10. Bxc3 {[%emt 0:00:08]} Nbd7 {[%emt 0:00:34]} 11. Nf3 {[%emt 0:00:54]} O-O {[%emt 0:03:31]} 12. Bd3 {[%emt 0:06:43]} a5 {[%emt 0:00:33]} 13. O-O {[%emt 0:08:04]} b6 {[%emt 0:09:52]} 14. Ng5 {[%emt 0:03:49]} g6 {[%emt 0:05:41]} 15. Rae1 {[%emt 0:05:11]} Ba6 {[%emt 0:05:37]} 16. Re3 {[%emt 0:07:30]} Bxd3 {[%emt 0:04:53]} 17. Rxd3 {[%emt 0:01:10]} h5 {[%emt 0:00:14]} 18. Nf3 {[%emt 0:06:34]} Qf5 {[%emt 0:03:12]} 19. Rfd1 {[%emt 0:02:11]} Nc5 {[%emt 0:01:03]} 20. Nd4 {[%emt 0:04:32]} g5 {[%emt 0:01:58]} 21. Rg3 {[%emt 0:04:48]} 1-0

[Event "16th Deltalift Open 2019"]
[Site "Halmstad"]
[Date "2019.06.01"]
[Round "8.10"]
[White "Lindgren, Fredrik"]
[Black "Crevatin, Leo"]
[Result "0-1"]
[ECO "D02"]
[WhiteElo "2278"]
[BlackElo "2210"]
[Annotator "ChessBase"]
[PlyCount "130"]
[EventDate "2019.05.30"]
[EventType "swiss"]
[EventCountry "SWE"]
[SourceTitle "playchess.com"]
[Source "ChessBase"]
[SourceQuality "1"]
[TimeControl "40/5400+30:1800+30"]

1. d4 {[%emt 0:00:00]} d5 {[%emt 0:00:00]} 2. Nf3 {[%emt 0:00:00]} Nf6 {[%emt 0:00:00]} 3. g3 {[%emt 0:00:05]} c6 {[%emt 0:00:00]} 4. Bg2 {[%emt 0:00:07]} Bf5 {[%emt 0:00:00]} 5. O-O {[%emt 0:00:06]} h6 {[%emt 0:00:00]} 6. Nbd2 {[%emt 0:00:44]} e6 {[%emt 0:00:00]} 7. c4 {[%emt 0:00:18]} Bd6 {[%emt 0:00:49]} 8. b3 {[%emt 0:00:12]} Nbd7 {[%emt 0:00:12]} 9. Bb2 {[%emt 0:00:07]} Qc7 {[%emt 0:00:08]} 10. Rc1 {[%emt 0:01:14]} O-O {[%emt 0:00:38]} 11. Re1 {[%emt 0:02:25]} Bh7 {[%emt 0:05:42]} 12. e3 {[%emt 0:01:52]} Rfe8 {[%emt 0:01:50]} 13. Qe2 {[%emt 0:05:44]} a5 {[%emt 0:02:56]} 14. Red1 {[%emt 0:02:05]} a4 {[%emt 0:04:54]} 15. c5 {[%emt 0:01:40]} Bf8 {[%emt 0:00:54]} 16. b4 {[%emt 0:00:13]} a3 {[%emt 0:06:50]} 17. Bc3 {[%emt 0:07:47]} b6 {[%emt 0:01:12]} 18. Nb3 {[%emt 0:08:54]} bxc5 {[%emt 0:00:27]} 19. bxc5 {[%emt 0:04:39]} Ne4 {[%emt 0:02:33]} 20. Qe1 {[%emt 0:09:25]} Reb8 {[%emt 0:04:50]} 21. Bf1 {[%emt 0:03:02]} Bg6 {[%emt 0:07:36]} 22. Be2 {[%emt 0:08:04]} Be7 {[%emt 0:01:04]} 23. Kg2 {[%emt 0:02:51]} Bf6 {[%emt 0:02:09]} 24. Ng1 {[%emt 0:01:06]} e5 {[%emt 0:02:54]} 25. f3 {[%emt 0:00:56]} Nxc3 {[%emt 0:00:26]} 26. Qxc3 {[%emt 0:00:34]} exd4 {[%emt 0:01:39]} 27. exd4 {[%emt 0:00:31]} Nf8 {[%emt 0:00:33]} 28. Bd3 {[%emt 0:00:30]} Bxd3 {[%emt 0:00:10]} 29. Qxd3 {[%emt 0:01:54]} Ne6 {[%emt 0:00:56]} 30. f4 {[%emt 0:04:34]} Ra4 {[%emt 0:05:50]} 31. Nf3 {[%emt 0:00:24]} Rbb4 {[%emt 0:04:38]} 32. Qe3 {[%emt 0:01:23]} g6 {[%emt 0:03:39]} 33. f5 {[%emt 0:18:44]} gxf5 {[%emt 0:00:05]} 34. Qxh6 {[%emt 0:00:18]} Bg7 {[%emt 0:01:48]} 35. Qh5 {[%emt 0:00:35]} Qf4 {[%emt 0:01:54]} 36. Re1 {[%emt 0:12:46]} Qg4 {[%emt 0:00:19]} 37. Qh4 {[%emt 0:01:49]} Qxh4 {[%emt 0:03:09]} 38. Nxh4 {[%emt 0:00:05]} Nxd4 {[%emt 0:01:18]} 39. Re8+ {[%emt 0:00:56]} Kh7 {[%emt 0:00:06]} 40. Nxd4 {[%emt 0:00:16]} Rxd4 {[%emt 0:00:43]} 41. Nxf5 {[%emt 0:12:29]} Rd2+ {[%emt 0:00:21]} 42. Kh3 {[%emt 0:00:08]} Rxa2 {[%emt 0:02:10]} 43. Nxg7 {[%emt 0:01:23]} Kxg7 {[%emt 0:00:03]} 44. Rf1 {[%emt 0:00:18]} Re4 {[%emt 0:03:25]} 45. Ra8 {[%emt 0:01:10]} Ree2 {[%emt 0:01:14]} 46. Kg4 {[%emt 0:04:28]} Rxh2 {[%emt 0:05:53]} 47. Rf5 {[%emt 0:05:19]} Rh6 {[%emt 0:00:52]} 48. Rg5+ {[%emt 0:05:12]} Rg6 {[%emt 0:00:45]} 49. Rxg6+ {[%emt 0:00:04]} Kxg6 {[%emt 0:00:56]} 50. Ra6 {[%emt 0:00:08]} Rc2 {[%emt 0:04:59]} 51. Rxc6+ {[%emt 0:00:15]} f6 {[%emt 0:00:04]} 52. Ra6 {[%emt 0:02:25]} Rxc5 {[%emt 0:00:52]} 53. Rxa3 {[%emt 0:00:06]} Rc4+ {[%emt 0:00:02]} 54. Kf3 {[%emt 0:02:01]} Kf5 {[%emt 0:00:20]} 55. Rb3 {[%emt 0:01:49]} Ke5 {[%emt 0:00:35]} 56. Ra3 {[%emt 0:00:25]} Rc6 {[%emt 0:00:35]} 57. g4 {[%emt 0:00:52]} Rd6 {[%emt 0:01:05]} 58. Re3+ {[%emt 0:00:56]} Kd4 {[%emt 0:00:10]} 59. Kf4 {[%emt 0:00:20]} Kc4 {[%emt 0:00:29]} 60. Re8 {[%emt 0:00:45]} d4 {[%emt 0:00:15]} 61. Ke4 {[%emt 0:00:27]} d3 {[%emt 0:00:26]} 62. Rc8+ {[%emt 0:00:12]} Kb3 {[%emt 0:00:01]} 63. Ke3 {[%emt 0:00:47]} d2 {[%emt 0:00:45]} 64. Rb8+ {[%emt 0:00:21]} Ka4 {[%emt 0:00:13]} 65. Ra8+ {[%emt 0:00:41]} Kb5 {[%emt 0:00:02] Kd4} 0-1

[Event "16th Deltalift Open 2019"]
[Site "Halmstad"]
[Date "2019.06.01"]
[Round "8.11"]
[White "Ask, Josef"]
[Black "Olund, Joar"]
[Result "0-1"]
[ECO "B06"]
[WhiteElo "2149"]
[BlackElo "2328"]
[Annotator "ChessBase"]
[PlyCount "118"]
[EventDate "2019.05.30"]
[EventType "swiss"]
[EventCountry "SWE"]
[SourceTitle "playchess.com"]
[Source "ChessBase"]
[SourceQuality "1"]
[TimeControl "40/5400+30:1800+30"]

1. e4 {[%emt 0:00:00]} g6 {[%emt 0:01:18]} 2. d3 {[%emt 0:00:33]} Bg7 {[%emt 0:00:14]} 3. f4 {[%emt 0:00:31]} d5 {[%emt 0:01:46]} 4. Be2 {[%emt 0:00:40]} dxe4 {[%emt 0:05:55]} 5. dxe4 {[%emt 0:00:09]} Qxd1+ {[%emt 0:00:09]} 6. Bxd1 {[%emt 0:00:05]} b6 {[%emt 0:01:23]} 7. Bf3 {[%emt 0:02:08]} Bb7 {[%emt 0:00:25]} 8. e5 {[%emt 0:00:54]} Nc6 {[%emt 0:01:11]} 9. Ne2 O-O-O {[%emt 0:00:32]} 10. c3 {[%emt 0:02:18]} f6 {[%emt 0:00:36]} 11. exf6 {[%emt 0:01:32]} exf6 {[%emt 0:00:13]} 12. Na3 {[%emt 0:02:35]} Nge7 {[%emt 0:00:44]} 13. O-O {[%emt 0:03:53]} Rhe8 {[%emt 0:01:02]} 14. Nc2 {[%emt 0:01:27]} Na5 {[%emt 0:01:22]} 15. Bxb7+ {[%emt 0:01:28]} Kxb7 {[%emt 0:00:03]} 16. Ned4 {[%emt 0:00:55]} Nd5 {[%emt 0:01:26]} 17. f5 {[%emt 0:01:02]} gxf5 {[%emt 0:00:10]} 18. Nxf5 {[%emt 0:00:45]} Bf8 {[%emt 0:00:13]} 19. Kh1 {[%emt 0:02:54]} Re2 {[%emt 0:05:48]} 20. Ncd4 {[%emt 0:01:38]} Re4 {[%emt 0:00:25]} 21. Ng3 {[%emt 0:01:22]} Ree8 {[%emt 0:00:12]} 22. Nh5 {[%emt 0:01:57]} Nc4 {[%emt 0:27:43]} 23. Nf5 {[%emt 0:03:01]} Re2 {[%emt 0:07:59]} 24. b3 {[%emt 0:05:42]} Nce3 {[%emt 0:00:34]} 25. Nxe3 {[%emt 0:04:19]} Nxe3 {[%emt 0:00:02]} 26. Bxe3 {[%emt 0:01:17]} Rxe3 {[%emt 0:00:02]} 27. Nxf6 {[%emt 0:02:54]} h6 {[%emt 0:10:37]} 28. c4 {[%emt 0:08:13]} Re2 {[%emt 0:02:06]} 29. Nd5 {[%emt 0:01:42]} Bd6 {[%emt 0:01:06]} 30. a4 {[%emt 0:03:38]} c6 {[%emt 0:09:59]} 31. Nf4 {[%emt 0:02:04]} Re3 {[%emt 0:09:31]} 32. Rad1 {[%emt 0:03:13]} Kc8 {[%emt 0:01:02]} 33. g3 {[%emt 0:03:10]} Bxf4 {[%emt 0:04:56]} 34. Rxd8+ {[%emt 0:00:24]} Kxd8 {[%emt 0:00:02]} 35. Rxf4 {[%emt 0:00:14]} Rxb3 {[%emt 0:00:03]} 36. Rf6 {[%emt 0:01:44]} Rb4 {[%emt 0:00:16]} 37. c5 {[%emt 0:03:47]} bxc5 {[%emt 0:05:08]} 38. Rxc6 {[%emt 0:00:17]} c4 {[%emt 0:00:01]} 39. a5 {[%emt 0:01:03]} Kd7 {[%emt 0:00:32]} 40. Rc5 {[%emt 0:02:08]} Kd6 {[%emt 0:00:10]} 41. Rc8 {[%emt 0:30:14]} Kd7 {[%emt 0:31:09]} 42. Rc5 {[%emt 0:00:22]} Kd6 {[%emt 0:00:10]} 43. Rc8 {[%emt 0:00:08]} Kd5 {[%emt 0:00:00]} 44. Kg2 {[%emt 0:00:00]} Kd4 {[%emt 0:00:00]} 45. Kf3 {[%emt 0:00:00]} Rb5 {[%emt 0:00:00]} 46. Rd8+ {[%emt 0:00:00]} Kc3 {[%emt 0:00:00]} 47. Rd6 {[%emt 0:00:00]} Rxa5 {[%emt 0:00:00]} 48. Rxh6 {[%emt 0:00:00]} Kb2 {[%emt 0:00:00]} 49. Rc6 {[%emt 0:00:00]} c3 {[%emt 0:00:00]} 50. h4 {[%emt 0:00:00]} c2 {[%emt 0:00:00]} 51. Kg4 {[%emt 0:00:00]} Ra1 {[%emt 0:00:00]} 52. h5 {[%emt 0:00:00]} c1=Q {[%emt 0:00:00]} 53. Rxc1 {[%emt 0:00:00]} Rxc1 {[%emt 0:00:00]} 54. h6 {[%emt 0:00:00]} a5 {[%emt 0:00:00]} 55. Kf5 {[%emt 0:00:00]} a4 {[%emt 0:00:00]} 56. g4 {[%emt 0:00:00]} a3 {[%emt 0:00:00]} 57. g5 {[%emt 0:00:00]} a2 {[%emt 0:00:00]} 58. h7 {[%emt 0:00:00]} Rh1 {[%emt 0:00:00]} 59. g6 {[%emt 0:00:00]} a1=Q {[%emt 0:00:00]} 0-1